fUSD/lending_fUSD_20240516
["ID","MTS","AMOUNT","RATE_DAILY","PERIOD"]
[327185220,1715884246169,-158.34852713,0.00010957,2]
[327185221,1715884246181,-3322.72120217,0.00010957,2]
[327185222,1715884246193,-1431.334,0.00010957,2]
[327185223,1715884246205,-16258.7000007,0.00010957,2]
[327185224,1715884246426,-33850.0,0.00010957,2]
[327185228,1715884819739,154.06,8.219e-05,2]
[327185256,1715885330550,154.06,8.219e-05,2]
[327185341,1715885438568,-260.50514106,9.913e-05,2]
[327185342,1715885438578,-250.0,9.914e-05,2]
[327185343,1715885438587,-1000.0,9.915e-05,2]
[327185344,1715885438599,-2357.1,9.92e-05,2]
[327185345,1715885438608,-176.48,9.922e-05,2]
[327185346,1715885438617,-155.0,9.947e-05,2]
[327185347,1715885438626,-186.16,9.955e-05,2]
[327185348,1715885438635,-6131.5211,0.00010757,2]
[327185349,1715885438644,-150.0,0.0001077,2]
[327185350,1715885438654,-373.9028,0.0001078,2]
[327185351,1715885438663,-1500.0,0.00010819,2]
[327185352,1715885438672,-150.0,0.00010827,2]
[327185353,1715885438681,-150.0,0.00010834,2]
[327185354,1715885438691,-150.0,0.0001084,2]
[327185355,1715885438700,-44809.71380281,0.00010846,2]
[327185356,1715885438709,-150.0,0.00010851,2]
[327185357,1715885438719,-19996.86584981,0.00010857,2]
[327185358,1715885438728,-154.08340742,0.00010857,2]
[327185359,1715885438737,-546.34422316,0.00010857,2]
[327185360,1715885438747,-229987.19721291,0.0001088,2]
[327185361,1715885438756,-150.0,0.0001088,2]
[327185362,1715885438766,-150.0,0.000109,2]
[327185363,1715885438775,-425.47,0.000109,2]
[327185364,1715885438785,-163.03508589,0.00010918,2]
[327185365,1715885438794,-1512.72350161,0.00010918,2]
[327185366,1715885438803,-150.0,0.00010926,2]
[327185367,1715885438815,-150.0,0.00010934,2]
[327185368,1715885438824,-500.0,0.00010941,2]
[327185369,1715885438834,-150.0,0.00010947,2]
[327185370,1715885438843,-1379.74444204,0.00010955,2]
[327185371,1715885438853,-429.49262258,0.00010955,2]
[327185372,1715885438862,-3088.25281878,0.00010955,2]
[327185373,1715885438872,-228.87211069,0.00010955,2]
[327185374,1715885438882,-487.66692959,0.00010955,2]
[327185376,1715885438891,-27933.82739121,0.00010956,2]
[327185379,1715885438900,-649.0,0.00010957,2]
[327185382,1715885438910,-1481677.54487554,0.00010957,2]
[327185385,1715885438922,-406581.39318282,0.00010957,2]
[327185389,1715885438933,-142196.5104039,0.00010957,2]
[327185392,1715885438944,-426.56573859,0.00010957,2]
[327185415,1715885440471,-291.44554907,0.00010957,2]
[327185416,1715885440724,-247387.84588778,0.00010957,2]
[327185417,1715885440736,-3187.839701,0.00010957,2]
[327185418,1715885440749,-4142.68500002,0.00010957,2]
[327185419,1715885440761,-2602.4,0.00010957,2]
[327185420,1715885440774,-640.20119125,0.00010957,2]
[327185421,1715885440785,-16090.17219327,0.00010957,2]
[327185422,1715885440795,-298.78407833,0.00010957,2]
[327185423,1715885440805,-150.0,0.00010957,2]
[327185424,1715885440815,-150.0,0.00010957,2]
[327185425,1715885440825,-505.41319928,0.00010958,2]
[327185426,1715885440834,-500.0,0.00010958,2]
[327185427,1715885440844,-503.22445189,0.00010958,2]
[327185428,1715885440853,-500.0,0.00010958,2]
[327185429,1715885440862,-509.72140742,0.00010958,2]
[327185430,1715885440872,-500.0,0.00010958,2]
[327185431,1715885440881,-220.62033457,0.00010958,2]
[327185432,1715885440890,-625.62102227,0.00010958,2]
[327185433,1715885440899,-508.3177096,0.00010958,2]
[327185434,1715885440909,-500.0,0.00010958,2]
[327185435,1715885440918,-500.0,0.00010958,2]
[327185436,1715885440928,-500.0,0.00010958,2]
[327185437,1715885440937,-500.0,0.00010958,2]
[327185438,1715885440947,-500.0,0.00010958,2]
[327185439,1715885440957,-507.03588781,0.00010958,2]
[327185440,1715885440966,-500.0,0.00010958,2]
[327185441,1715885440976,-505.10533059,0.00010958,2]
[327185442,1715885440985,-500.0,0.00010958,2]
[327185443,1715885440994,-519.3206618,0.00010958,2]
[327185444,1715885441003,-500.0,0.00010958,2]
[327185445,1715885441012,-515.84021232,0.00010958,2]
[327185446,1715885441022,-500.0,0.00010958,2]
[327185447,1715885441031,-500.0,0.00010958,2]
[327185448,1715885441041,-500.0,0.00010958,2]
[327185449,1715885441050,-500.0,0.00010958,2]
[327185450,1715885441059,-500.0,0.00010958,2]
[327185451,1715885441068,-500.0,0.00010958,2]
[327185452,1715885441077,-500.0,0.00010958,2]
[327185453,1715885441086,-500.0,0.00010958,2]
[327185454,1715885441096,-500.0,0.00010958,2]
[327185455,1715885441109,-500.0,0.00010958,2]
[327185456,1715885441118,-500.0,0.00010958,2]
[327185457,1715885441127,-500.0,0.00010958,2]
[327185458,1715885441136,-467.75542855,0.00010958,2]
[327185459,1715885441146,-500.0,0.00010958,2]
[327185460,1715885441156,-575.21,0.00010958,2]
[327185461,1715885441165,-500.0,0.00010958,2]
[327185462,1715885441174,-500.0,0.00010958,2]
[327185463,1715885441187,-508.71070453,0.00010958,2]
[327185464,1715885441197,-520.78,0.00010958,2]
[327185465,1715885441206,-447.68940308,0.00010958,2]
[327185466,1715885441231,-52.31059692,0.00010958,2]
[327185467,1715885441240,-260.42571017,0.00010958,2]
[327185475,1715885443496,-239.57428983,0.00010958,2]
[327185478,1715885443505,-500.0,0.00010958,2]
[327185480,1715885443515,-500.0,0.00010958,2]
[327185482,1715885443524,-68.4257143,0.00010958,2]
[327185484,1715885443536,-431.5742857,0.00010958,2]
[327185486,1715885443545,-101.76654058,0.00010958,2]
[327185487,1715885443557,-98.23345942,0.00010958,2]
[327185488,1715885443566,-200.0,0.00010958,2]
[327185489,1715885443575,-200.0,0.00010958,2]
[327185490,1715885443585,-225.65675889,0.00010958,2]
[327185491,1715885443594,-500.0,0.00010958,2]
[327185492,1715885443606,-500.0,0.00010958,2]
[327185493,1715885443615,-500.0,0.00010958,2]
[327185494,1715885443624,-500.0,0.00010958,2]
[327185495,1715885443633,-500.0,0.00010958,2]
[327185496,1715885443642,-591.54579493,0.00010958,2]
[327185497,1715885443652,-500.0,0.00010958,2]
[327185498,1715885443662,-500.0,0.00010958,2]
[327185499,1715885443672,-500.0,0.00010958,2]
[327185500,1715885443681,-500.0,0.00010958,2]
[327185501,1715885443692,-500.0,0.00010958,2]
[327185502,1715885443701,-500.0,0.00010958,2]
[327185503,1715885443712,-500.0,0.00010958,2]
[327185504,1715885443722,-500.0,0.00010958,2]
[327185505,1715885443731,-500.0,0.00010958,2]
[327185506,1715885443741,-500.0,0.00010958,2]
[327185507,1715885443750,-500.0,0.00010958,2]
[327185508,1715885443760,-500.0,0.00010958,2]
[327185509,1715885443769,-500.0,0.00010958,2]
[327185510,1715885443779,-500.0,0.00010958,2]
[327185511,1715885443788,-500.0,0.00010958,2]
[327185512,1715885443797,-500.0,0.00010958,2]
[327185513,1715885443807,-500.0,0.00010958,2]
[327185514,1715885443817,-500.0,0.00010958,2]
[327185515,1715885443828,-500.0,0.00010958,2]
[327185516,1715885443838,-404.18174349,0.00010958,2]
[327185517,1715885443848,-500.0,0.00010958,2]
[327185518,1715885443858,-500.0,0.00010958,2]
[327185519,1715885443866,-314.71260072,0.00010958,2]
[327185520,1715885443926,-185.28739928,0.00010958,2]
[327185521,1715885443935,-520.7727122,0.00010958,2]
[327185522,1715885443944,-87.74177887,0.00010958,2]
[327185523,1715885443956,-412.25822113,0.00010958,2]
[327185524,1715885443966,-500.0,0.00010958,2]
[327185525,1715885443975,-220.94182933,0.00010958,2]
[327185526,1715885443987,-279.05817067,0.00010958,2]
[327185527,1715885443996,-121.64771199,0.00010958,2]
[327185528,1715885444008,-378.35228801,0.00010958,2]
[327185529,1715885444018,-500.0,0.00010958,2]
[327185530,1715885444027,-500.0,0.00010958,2]
[327185531,1715885444037,-500.0,0.00010958,2]
[327185532,1715885444047,-500.0,0.00010958,2]
[327185533,1715885444057,-500.0,0.00010958,2]
[327185534,1715885444067,-500.0,0.00010958,2]
[327185535,1715885444077,-500.0,0.00010958,2]
[327185536,1715885444087,-500.0,0.00010958,2]
[327185537,1715885444096,-500.0,0.00010958,2]
[327185538,1715885444108,-500.0,0.00010958,2]
[327185539,1715885444121,-392.52618483,0.00010958,2]
[327185541,1715885446323,-584.0,0.00010957,2]
[327185542,1715885446333,-157.64823288,0.00010958,2]
[327185543,1715885446342,-500.0,0.00010958,2]
[327185544,1715885446351,-204.52262557,0.00010958,2]
[327185545,1715885446363,-307.53892638,0.00010958,2]
[327185546,1715885446373,-500.0,0.00010958,2]
[327185547,1715885446382,-500.0,0.00010958,2]
[327185548,1715885446390,-500.0,0.00010958,2]
[327185549,1715885446399,-512.20943451,0.00010958,2]
[327185550,1715885446412,-500.0,0.00010958,2]
[327185551,1715885446428,-444.51466861,0.00010958,2]
[327185552,1715885446446,-55.48533139,0.00010958,2]
[327185553,1715885446455,-500.0,0.00010958,2]
[327185554,1715885446464,-325.25581832,0.00010958,2]
[327185555,1715885446473,-347.73609211,0.00010958,2]
[327185556,1715885446483,-420.84689977,0.00010958,2]
[327185557,1715885446495,-79.15310023,0.00010958,2]
[327185558,1715885446504,-500.0,0.00010958,2]
[327185559,1715885446514,-500.0,0.00010958,2]
[327185560,1715885446523,-500.0,0.00010958,2]
[327185561,1715885446532,-500.0,0.00010958,2]
[327185562,1715885446541,-500.0,0.00010958,2]
[327185563,1715885446551,-500.0,0.00010958,2]
[327185564,1715885446560,-500.0,0.00010958,2]
[327185565,1715885446570,-500.0,0.00010958,2]
[327185566,1715885446579,-174.75301731,0.00010958,2]
[327185567,1715885446589,-169.99106051,0.00010958,2]
[327185568,1715885446604,-330.00893949,0.00010958,2]
[327185569,1715885446614,-556.17518227,0.00010958,2]
[327185570,1715885446623,-538.52409138,0.00010958,2]
[327185571,1715885446632,-500.0,0.00010958,2]
[327185572,1715885446642,-500.0,0.00010958,2]
[327185573,1715885446651,-500.0,0.00010958,2]
[327185574,1715885446660,-500.0,0.00010958,2]
[327185575,1715885446669,-507.37856364,0.00010958,2]
[327185576,1715885446680,-500.0,0.00010958,2]
[327185577,1715885446689,-515.19741678,0.00010958,2]
[327185578,1715885446699,-500.0,0.00010958,2]
[327185579,1715885446708,-500.0,0.00010958,2]
[327185580,1715885446717,-500.0,0.00010958,2]
[327185581,1715885446726,-500.0,0.00010958,2]
[327185582,1715885446735,-500.0,0.00010958,2]
[327185583,1715885446744,-500.0,0.00010958,2]
[327185584,1715885446753,-519.88311065,0.00010958,2]
[327185585,1715885446763,-500.0,0.00010958,2]
[327185586,1715885446772,-500.0,0.00010958,2]
[327185588,1715885446781,-500.0,0.00010958,2]
[327185590,1715885446791,-500.0,0.00010958,2]
[327185592,1715885446800,-500.0,0.00010958,2]
[327185594,1715885446809,-592.18585114,0.00010958,2]
[327185596,1715885446818,-500.0,0.00010958,2]
[327185598,1715885446827,-500.0,0.00010958,2]
[327185600,1715885446836,-500.0,0.00010958,2]
[327185602,1715885446846,-500.0,0.00010958,2]
[327185604,1715885446856,-500.0,0.00010958,2]
[327185606,1715885446865,-500.0,0.00010958,2]
[327185608,1715885446874,-500.0,0.00010958,2]
[327185610,1715885446883,-321.64287192,0.00010958,2]
[327185612,1715885446892,-616.6754563,0.00010958,2]
[327185614,1715885446902,-548.13079318,0.00010958,2]
[327185616,1715885446911,-500.0,0.00010958,2]
[327185618,1715885446920,-500.0,0.00010958,2]
[327185620,1715885446929,-500.0,0.00010958,2]
[327185622,1715885446938,-500.0,0.00010958,2]
[327185624,1715885446947,-500.0,0.00010958,2]
[327185626,1715885446956,-500.0,0.00010958,2]
[327185628,1715885446965,-500.0,0.00010958,2]
[327185630,1715885446974,-500.0,0.00010958,2]
[327185632,1715885446983,-500.0,0.00010958,2]
[327185634,1715885446993,-500.0,0.00010958,2]
[327185636,1715885447002,-412.30062972,0.00010958,2]
[327185638,1715885447012,-528.04783023,0.00010958,2]
[327185640,1715885447021,-500.0,0.00010958,2]
[327185642,1715885447030,-500.0,0.00010958,2]
[327185644,1715885447040,-500.0,0.00010958,2]
[327185646,1715885447049,-500.0,0.00010958,2]
[327185648,1715885447058,-500.0,0.00010958,2]
[327185650,1715885447067,-500.0,0.00010958,2]
[327185651,1715885447077,-500.0,0.00010958,2]
[327185652,1715885447086,-88.75332549,0.00010958,2]
[327185654,1715885808521,150.0,8.219e-05,2]
[327185655,1715885808543,4.06,8.219e-05,2]
[327185656,1715885958347,1000.0,9.462e-05,2]
[327185657,1715885970082,150.0,9.468e-05,2]
[327185658,1715885970108,36.16,9.468e-05,2]
[327185659,1715886192044,1570.72,9.497e-05,2]
[327185660,1715886286192,150.0,9.493e-05,2]
[327185661,1715886286212,150.0,9.493e-05,2]
[327185662,1715886286232,150.0,9.493e-05,2]
[327185663,1715886286253,150.0,9.493e-05,2]
[327185664,1715886286274,57.69,9.493e-05,2]
[327185665,1715886322547,154.06,8.219e-05,2]
[327185666,1715886346251,-250.0,9.504e-05,2]
[327185669,1715886413187,-704.62,9.539e-05,2]
[327185671,1715886442928,-200.0,9.539e-05,2]
[327185839,1715886632640,-413.01,9.986e-05,2]
[327185840,1715886632650,-413.01,9.989e-05,2]
[327185841,1715886632659,-413.01,9.991e-05,2]
[327185842,1715886632668,-63.24342757,9.994e-05,2]
[327185848,1715886634813,-349.76657243,9.994e-05,2]
[327185849,1715886634822,-96.73027403,9.996e-05,2]
[327185850,1715886634834,-316.27972597,9.996e-05,2]
[327185851,1715886634843,-413.01,9.999e-05,2]
[327185852,1715886634852,-200.0,0.0001,2]
[327185853,1715886634861,-376.95027403,0.00010002,2]
[327185859,1715886639047,-36.05972597,0.00010002,2]
[327185861,1715886639057,-413.01,0.00010004,2]
[327185863,1715886639067,-413.01,0.00010007,2]
[327185865,1715886639076,-413.01,0.0001001,2]
[327185867,1715886639086,-413.01,0.00010012,2]
[327185868,1715886639096,-413.01,0.00010015,2]
[327185871,1715886639105,-413.01,0.00010017,2]
[327185873,1715886639115,-413.01,0.0001002,2]
[327185875,1715886639125,-413.01,0.00010023,2]
[327185877,1715886639135,-413.01,0.00010025,2]
[327185879,1715886639145,-413.01,0.00010028,2]
[327185881,1715886639154,-413.01,0.00010031,2]
[327185883,1715886639164,-413.01,0.00010033,2]
[327185885,1715886639173,-413.01,0.00010036,2]
[327185887,1715886639184,-1000.0,0.00010644,2]
[327185888,1715886639194,-200.0,0.00010732,2]
[327185889,1715886639204,-150.0,0.00010779,2]
[327185890,1715886639214,-150.0,0.00010783,2]
[327185891,1715886639223,-150.0,0.00010801,2]
[327185892,1715886639233,-217.46466536,0.00010855,2]
[327185893,1715886639246,-327.73943464,0.00010855,2]
[327185894,1715886639256,-18766.35587996,0.00010858,2]
[327185895,1715886639266,-154.0834074,0.00010858,2]
[327185896,1715886639276,-738.04433332,0.00010858,2]
[327185897,1715886639285,-971.0,0.00010867,2]
[327185898,1715886639295,-150.63,0.000109,2]
[327185899,1715886639304,-500.0,0.00010917,2]
[327185900,1715886639314,-163.03508589,0.00010918,2]
[327185901,1715886639323,-150.0,0.00010926,2]
[327185902,1715886639334,-1302.27342757,0.00010955,2]
[327185903,1715886639345,-169.11110047,0.00010956,7]
[327185904,1715886639354,-155.13236369,0.00010956,2]
[327185905,1715886639363,-623.01390858,0.00010956,2]
[327185906,1715886639373,-237.10219524,0.00010956,2]
[327185907,1715886639383,-1468.20106656,0.00010956,2]
[327185908,1715886639392,-788.25935125,0.00010956,2]
[327185909,1715886639402,-155.0,0.00010956,2]
[327185910,1715886639411,-162.46980569,0.00010956,2]
[327185911,1715886639420,-200.77628892,0.00010956,2]
[327185912,1715886639430,-488.45547559,0.00010956,2]
[327185913,1715886639440,-405.68231157,0.00010956,2]
[327185914,1715886639454,-2184.7567704,0.00010956,2]
[327185915,1715886639464,-2327.05522688,0.00010956,2]
[327185916,1715886639474,-155.0,0.00010956,2]
[327185917,1715886639484,-207.25954279,0.00010956,2]
[327185918,1715886639498,-157.62535748,0.00010956,2]
[327185919,1715886639508,-155.0,0.00010956,2]
[327185920,1715886639519,-2360.79430003,0.00010956,2]
[327185921,1715886639530,-155.05591325,0.00010956,2]
[327185922,1715886639541,-160.6591699,0.00010956,2]
[327185923,1715886639552,-318.80410899,0.00010956,2]
[327185924,1715886639562,-192.42773607,0.00010957,2]
[327185925,1715886639575,-266.10096852,0.00010957,2]
[327185926,1715886639585,-589.0,0.00010958,2]
[327185927,1715886639596,-500.0,0.00010958,2]
[327185928,1715886639605,-503.24134299,0.00010958,2]
[327185929,1715886639615,-500.0,0.00010958,2]
[327185930,1715886639625,-506.74479064,0.00010958,2]
[327185931,1715886639634,-500.0,0.00010958,2]
[327185932,1715886639644,-500.0,0.00010958,2]
[327185933,1715886639654,-200.76148457,0.00010958,2]
[327185934,1715886639664,-500.0,0.00010958,2]
[327185935,1715886639673,-500.0,0.00010958,2]
[327185936,1715886639683,-500.0,0.00010958,2]
[327185937,1715886639693,-500.0,0.00010958,2]
[327185938,1715886639702,-500.0,0.00010958,2]
[327185939,1715886639712,-611.06,0.00010958,2]
[327185940,1715886639721,-500.0,0.00010958,2]
[327185941,1715886639731,-500.0,0.00010958,2]
[327185942,1715886639741,-500.0,0.00010958,2]
[327185943,1715886639750,-487.1928434,0.00010958,2]
[327185944,1715886639760,-500.0,0.00010958,2]
[327185945,1715886639770,-500.0,0.00010958,2]
[327185946,1715886639780,-500.0,0.00010958,2]
[327185947,1715886639790,-500.0,0.00010958,2]
[327185948,1715886639799,-500.0,0.00010958,2]
[327185949,1715886639809,-500.0,0.00010958,2]
[327185950,1715886639819,-500.0,0.00010958,2]
[327185951,1715886639828,-500.0,0.00010958,2]
[327185952,1715886639839,-500.0,0.00010958,2]
[327185953,1715886639850,-500.0,0.00010958,2]
[327185954,1715886639860,-500.0,0.00010958,2]
[327185955,1715886639870,-500.0,0.00010958,2]
[327185956,1715886639880,-500.0,0.00010958,2]
[327185957,1715886639890,-500.0,0.00010958,2]
[327185958,1715886639900,-500.0,0.00010958,2]
[327185959,1715886639910,-500.0,0.00010958,2]
[327185960,1715886639921,-500.0,0.00010958,2]
[327185961,1715886639931,-500.0,0.00010958,2]
[327185962,1715886639941,-500.0,0.00010958,2]
[327185963,1715886639950,-500.0,0.00010958,2]
[327185964,1715886639960,-500.0,0.00010958,2]
[327185965,1715886639969,-500.0,0.00010958,2]
[327185966,1715886639980,-500.0,0.00010958,2]
[327185967,1715886639989,-500.0,0.00010958,2]
[327185968,1715886639999,-500.0,0.00010958,2]
[327185969,1715886640009,-500.0,0.00010958,2]
[327185970,1715886640018,-500.0,0.00010958,2]
[327185971,1715886640028,-500.0,0.00010958,2]
[327185972,1715886640038,-500.0,0.00010958,2]
[327185973,1715886640048,-500.0,0.00010958,2]
[327185974,1715886640058,-500.0,0.00010958,2]
[327185975,1715886640067,-500.0,0.00010958,2]
[327185976,1715886640077,-500.0,0.00010958,2]
[327185977,1715886640087,-500.0,0.00010958,2]
[327185978,1715886640098,-500.0,0.00010958,2]
[327185979,1715886640108,-500.0,0.00010958,2]
[327185980,1715886640118,-500.0,0.00010958,2]
[327185981,1715886640127,-2000.0,0.00010958,2]
[327185982,1715886640137,-500.0,0.00010958,2]
[327185983,1715886640147,-500.0,0.00010958,2]
[327185984,1715886640157,-500.0,0.00010958,2]
[327185985,1715886640166,-500.0,0.00010958,2]
[327185986,1715886640175,-500.0,0.00010958,2]
[327185987,1715886640185,-500.0,0.00010958,2]
[327185988,1715886640195,-500.0,0.00010958,2]
[327185989,1715886640205,-500.0,0.00010958,2]
[327185990,1715886640215,-500.0,0.00010958,2]
[327185991,1715886640224,-500.0,0.00010958,2]
[327185992,1715886640234,-500.0,0.00010958,2]
[327185993,1715886640244,-500.0,0.00010958,2]
[327185994,1715886640254,-500.0,0.00010958,2]
[327185995,1715886640264,-500.0,0.00010958,2]
[327185996,1715886640273,-500.0,0.00010958,2]
[327185997,1715886640283,-240.41103702,0.00010958,2]
[327185998,1715886640293,-500.0,0.00010958,2]
[327185999,1715886640302,-500.0,0.00010958,2]
[327186000,1715886640312,-500.0,0.00010958,2]
[327186001,1715886640321,-200.0,0.00010958,2]
[327186002,1715886640331,-500.0,0.00010958,2]
[327186003,1715886640343,-500.0,0.00010958,2]
[327186004,1715886640352,-500.0,0.00010958,2]
[327186005,1715886640361,-500.0,0.00010958,2]
[327186006,1715886640371,-500.0,0.00010958,2]
[327186007,1715886640380,-500.0,0.00010958,2]
[327186008,1715886640390,-538.30505952,0.00010958,2]
[327186009,1715886640622,-500.0,0.00010958,2]
[327186010,1715886640632,-500.0,0.00010958,2]
[327186011,1715886640642,-500.0,0.00010958,2]
[327186012,1715886640651,-500.0,0.00010958,2]
[327186013,1715886640662,-526.31813134,0.00010958,2]
[327186014,1715886640671,-500.0,0.00010958,2]
[327186015,1715886640681,-500.0,0.00010958,2]
[327186016,1715886640691,-500.0,0.00010958,2]
[327186017,1715886640700,-500.0,0.00010958,2]
[327186018,1715886640711,-500.0,0.00010958,2]
[327186019,1715886640720,-500.0,0.00010958,2]
[327186020,1715886640730,-500.0,0.00010958,2]
[327186021,1715886640750,-500.0,0.00010958,2]
[327186022,1715886640761,-500.0,0.00010958,2]
[327186023,1715886640772,-500.0,0.00010958,2]
[327186024,1715886640782,-500.0,0.00010958,2]
[327186025,1715886640792,-500.0,0.00010958,2]
[327186026,1715886640802,-500.0,0.00010958,2]
[327186027,1715886640812,-500.0,0.00010958,2]
[327186028,1715886640822,-500.0,0.00010958,2]
[327186029,1715886640832,-191.81930973,0.00010958,2]
[327186030,1715886640843,-500.0,0.00010958,2]
[327186031,1715886640853,-500.0,0.00010958,2]
[327186032,1715886640869,-500.0,0.00010958,2]
[327186033,1715886640879,-500.0,0.00010958,2]
[327186034,1715886640889,-500.0,0.00010958,2]
[327186035,1715886640899,-500.0,0.00010958,2]
[327186036,1715886640910,-515.50772465,0.00010958,2]
[327186037,1715886640920,-500.0,0.00010958,2]
[327186038,1715886640930,-534.90414638,0.00010958,2]
[327186039,1715886640940,-500.0,0.00010958,2]
[327186040,1715886640950,-500.0,0.00010958,2]
[327186041,1715886640960,-500.0,0.00010958,2]
[327186042,1715886640970,-500.0,0.00010958,2]
[327186043,1715886640980,-506.48865916,0.00010958,2]
[327186044,1715886640990,-500.0,0.00010958,2]
[327186045,1715886640999,-500.0,0.00010958,2]
[327186046,1715886641009,-500.0,0.00010958,2]
[327186047,1715886641022,-500.0,0.00010958,2]
[327186048,1715886641032,-500.0,0.00010958,2]
[327186049,1715886641042,-500.0,0.00010958,2]
[327186050,1715886641053,-500.0,0.00010958,2]
[327186051,1715886641062,-500.0,0.00010958,2]
[327186052,1715886641072,-500.0,0.00010958,2]
[327186053,1715886641082,-500.0,0.00010958,2]
[327186054,1715886641092,-500.0,0.00010958,2]
[327186055,1715886641103,-500.0,0.00010958,2]
[327186056,1715886641113,-500.0,0.00010958,2]
[327186057,1715886641123,-500.0,0.00010958,2]
[327186058,1715886641132,-500.0,0.00010958,2]
[327186059,1715886641142,-500.0,0.00010958,2]
[327186060,1715886641152,-500.0,0.00010958,2]
[327186061,1715886641162,-500.0,0.00010958,2]
[327186062,1715886641172,-500.0,0.00010958,2]
[327186063,1715886641183,-500.0,0.00010958,2]
[327186064,1715886641195,-500.0,0.00010958,2]
[327186065,1715886641206,-500.0,0.00010958,2]
[327186066,1715886641216,-500.0,0.00010958,2]
[327186067,1715886641226,-500.0,0.00010958,2]
[327186068,1715886641237,-500.0,0.00010958,2]
[327186069,1715886641247,-500.0,0.00010958,2]
[327186070,1715886641258,-500.0,0.00010958,2]
[327186071,1715886641267,-500.0,0.00010958,2]
[327186072,1715886641278,-500.0,0.00010958,2]
[327186073,1715886641288,-500.0,0.00010958,2]
[327186074,1715886641300,-500.0,0.00010958,2]
[327186075,1715886641310,-500.0,0.00010958,2]
[327186076,1715886641320,-500.0,0.00010958,2]
[327186077,1715886641330,-500.0,0.00010958,2]
[327186078,1715886641343,-500.0,0.00010958,2]
[327186079,1715886641353,-500.0,0.00010958,2]
[327186080,1715886641362,-500.0,0.00010958,2]
[327186081,1715886641372,-500.0,0.00010958,2]
[327186082,1715886641382,-500.0,0.00010958,2]
[327186083,1715886641391,-500.0,0.00010958,2]
[327186084,1715886641400,-500.0,0.00010958,2]
[327186085,1715886641410,-500.0,0.00010958,2]
[327186086,1715886641419,-500.0,0.00010958,2]
[327186087,1715886641429,-500.0,0.00010958,2]
[327186088,1715886641439,-500.0,0.00010958,2]
[327186089,1715886641449,-635.2,0.00010958,2]
[327186090,1715886641458,-500.0,0.00010958,2]
[327186091,1715886641468,-500.0,0.00010958,2]
[327186092,1715886641478,-500.0,0.00010958,2]
[327186093,1715886641488,-500.0,0.00010958,2]
[327186094,1715886641503,-500.0,0.00010958,2]
[327186095,1715886641512,-518.04979609,0.00010958,2]
[327186096,1715886641522,-500.0,0.00010958,2]
[327186097,1715886641532,-500.0,0.00010958,2]
[327186098,1715886641543,-500.0,0.00010958,2]
[327186099,1715886641553,-500.0,0.00010958,2]
[327186100,1715886641562,-405.1,0.00010958,2]
[327186101,1715886641573,-500.0,0.00010958,2]
[327186102,1715886641585,-500.0,0.00010958,2]
[327186103,1715886641598,-500.0,0.00010958,2]
[327186104,1715886641607,-500.0,0.00010958,2]
[327186105,1715886641616,-541.93619325,0.00010958,2]
[327186106,1715886641625,-500.0,0.00010958,2]
[327186107,1715886641634,-500.0,0.00010958,2]
[327186108,1715886641643,-500.0,0.00010958,2]